[Event "14th HSG Open 2019-BC"]
[Site "Hilversum"]
[Date "2019.06.21"]
[Round "1.1"]
[White "Den Boer, Paul"]
[Black "De Groot, Hendrik"]
[Result "1-0"]
[ECO "D43"]
[WhiteElo "1901"]
[BlackElo "2116"]
[Annotator "NA"]
[PlyCount "75"]
[EventDate "2019.06.21"]
[EventType "swiss"]
[EventCountry "NED"]
[SourceTitle "playchess.com"]
[Source "ChessBase"]
[SourceQuality "1"]
[TimeControl "6600+10"]

1. d4 {[%emt 0:00:09]} d5 {[%emt 0:00:00]} 2. Nf3 {[%emt 0:00:07]} e6 {[%emt 0:00:16]} 3. c4 {[%emt 0:03:51]} Nf6 {[%emt 0:01:45]} 4. Nc3 {[%emt 0:03:38]} c6 {[%emt 0:00:10]} 5. Bg5 Nbd7 6. Qb3 {[%emt 0:23:21]} Be7 {[%emt 0:10:48]} 7. e3 {[%emt 0:03:36]} O-O {[%emt 0:00:23]} 8. Bd3 {[%emt 0:01:34]} dxc4 {[%emt 0:07:46]} 9. Bxc4 {[%emt 0:00:10] D60: Queen's Gambit Declined: Classical: Unusual White 7th moves} (9. Qxc4 c5 10. O-O cxd4 11. Qxd4 h6 12. Bh4 b6 13. Rfd1 Bb7 14. Bb5 Nc5 15. b4 Na6 16. a3 Rc8 {½-½ (48) Harikrishna,P (2673)-Dreev,A (2710) Melilla 2011}) 9... Nb6 {[%emt 0:00:08]} 10. Be2 {[%emt 0:03:31]} Nbd5 $146 {[%emt 0:06:04]} ({Predecessor:} 10... Nfd5 11. Bxe7 Qxe7 12. O-O Nd7 13. Rfd1 b6 14. Rac1 Bb7 15. Nxd5 cxd5 16. Rc7 {1-0 (29) Duzs,J (2075)-Balogh,G Hungary 2007}) 11. O-O {[%emt 0:06:00]} b6 {[%emt 0:01:43]} 12. Ne5 {[%emt 0:01:56]} Bb7 {[%emt 0:00:54]} 13. Rac1 {[%emt 0:03:39]} Nxc3 {[%emt 0:12:24]} 14. Rxc3 {[%emt 0:04:44]} Ne4 {[%emt 0:02:25]} 15. Bxe7 {[%emt 0:04:55]} Qxe7 {[%emt 0:00:16]} 16. Rc2 {[%emt 0:05:35]} Rfc8 {[%emt 0:07:05]} 17. Rfc1 {[%emt 0:09:41]} c5 {[%emt 0:14:47]} 18. Qa3 {[%emt 0:12:03]} Qf6 {[%emt 0:09:03]} 19. f3 {[%emt 0:02:46]} Nd6 {[%emt 0:05:09]} 20. Ng4 {[%emt 0:00:53]} Qg5 {[%emt 0:03:19]} 21. dxc5 {[%emt 0:01:09]} bxc5 {[%emt 0:04:05]} 22. Rxc5 {[%emt 0:00:40]} Rxc5 {[%emt 0:02:54]} 23. Qxc5 {[%emt 0:03:57]} Qxc5 {[%emt 0:01:11]} 24. Rxc5 {[%emt 0:00:02]} Bd5 {[%emt 0:01:37]} 25. b3 $18 {[%emt 0:01:24]} Rc8 {[%emt 0:02:24]} 26. Rxc8+ {[%emt 0:00:12]} Nxc8 {[%emt 0:00:06]} 27. Ba6 {[%emt 0:01:25]} Nd6 {[%emt 0:00:23]} 28. e4 {[%emt 0:00:23]} Bc6 {[%emt 0:00:52]} 29. Ne5 {[%emt 0:00:11]} Bb5 {[%emt 0:00:23]} 30. Bxb5 {[%emt 0:00:38]} Nxb5 {[%emt 0:00:07]} 31. Kf2 {[%emt 0:02:15]} Kf8 {[%emt 0:00:48]} 32. Ke3 {[%emt 0:00:29]} f6 {[%emt 0:01:23]} 33. Nc6 {[%emt 0:02:03]} a6 {[%emt 0:00:06]} 34. a4 {[%emt 0:01:08]} Nc7 {[%emt 0:00:10]} 35. Kd4 {[%emt 0:01:37]} Ke8 {[%emt 0:00:13]} 36. Kc5 {[%emt 0:00:41]} Kd7 {[%emt 0:03:40]} 37. b4 {[%emt 0:00:18]} h5 {[%emt 0:00:07]} 38. b5 1-0

[Event "14th HSG Open 2019-BC"]
[Site "Hilversum"]
[Date "2019.06.21"]
[Round "1.2"]
[White "Coenjaerts, Rene"]
[Black "Mensing, Adrian"]
[Result "0-1"]
[ECO "C63"]
[WhiteElo "1718"]
[BlackElo "1938"]
[Annotator "NA RC"]
[PlyCount "44"]
[EventDate "2019.06.21"]
[EventType "swiss"]
[EventCountry "NED"]
[SourceTitle "playchess.com"]
[Source "ChessBase"]
[SourceQuality "1"]
[TimeControl "6600+10"]

1. e4 {[%emt 0:00:00]} e5 {[%emt 0:00:00]} 2. Nf3 {[%emt 0:00:05]} Nc6 {[%emt 0:00:01]} 3. Bb5 {[%emt 0:00:16]} f5 {[%emt 0:00:05]} 4. d3 {[%emt 0:03:03]} fxe4 {[%emt 0:00:04]} 5. dxe4 {[%emt 0:00:36]} Nf6 {[%emt 0:00:07]} 6. O-O Bc5 {[%emt 0:03:00]} 7. Nc3 {[%emt 0:04:10]} d6 {[%emt 0:00:39]} 8. Qe2 Bg4 {[%emt 0:18:15]} 9. Na4 {[%emt 0:16:17]} Bb6 {[%emt 0:01:14]} 10. Nxb6 {[%emt 0:00:49]} axb6 {[%emt 0:00:08]} 11. Qd3 {[%emt 0:02:39]} O-O {[%emt 0:19:41]} 12. Ng5 {[%emt 0:10:16]} h6 $16 {[%emt 0:39:58]} (12... Qe8 $15 {stays ahead.}) 13. Bc4+ {[%emt 0:14:59]} d5 {[%emt 0:00:10]} 14. exd5 {[%emt 0:00:53]} Nd4 {[%emt 0:06:11]} 15. d6+ {[%emt 0:02:11]} Kh8 {[%emt 0:00:18]} 16. Nf7+ {[%emt 0:02:18]} Rxf7 {[%emt 0:00:10]} 17. Bxf7 {[%emt 0:00:07]} Be2 {[%emt 0:00:36]} 18. Qg6 {[%emt 0:00:14]} Bh5 {[%emt 0:01:45]} 19. dxc7 {[%emt 0:03:45]} Qxc7 {[%emt 0:00:36]} 20. Qd3 {[%emt 0:01:48]} Qxf7 {[%emt 0:02:56]} 21. f3 {[%emt 0:02:06]} Bg6 {[%emt 0:00:26]} 22. Qd1 {[%emt 0:04:27]} Nxc2 {[%emt 0:03:55]} 0-1

[Event "14th HSG Open 2019-BC"]
[Site "Hilversum"]
[Date "2019.06.21"]
[Round "1.4"]
[White "Heins, Ricardo"]
[Black "Jacobsen, Raymond"]
[Result "0-1"]
[ECO "C45"]
[WhiteElo "1430"]
[BlackElo "1358"]
[Annotator "NA RC"]
[PlyCount "76"]
[EventDate "2019.06.21"]
[EventType "swiss"]
[EventCountry "NED"]
[SourceTitle "playchess.com"]
[Source "ChessBase"]
[SourceQuality "1"]
[TimeControl "6600+10"]

1. e4 {[%emt 0:00:00]} e5 {[%emt 0:03:19]} 2. Nf3 {[%emt 0:00:08]} Nc6 {[%emt 0:00:08]} 3. d4 {[%emt 0:00:16]} exd4 {[%emt 0:00:14]} 4. Nxd4 {[%emt 0:00:09]} Bc5 {[%emt 0:00:27]} 5. Nxc6 Qf6 6. Qd2 {[%emt 0:02:57]} Qxc6 {[%emt 0:01:25]} 7. Bd3 {[%emt 0:00:36]} Nf6 {[%emt 0:01:58]} 8. Qf4 {[%emt 0:02:48]} d6 {[%emt 0:03:02]} 9. Nd2 {[%emt 0:00:52]} Be6 10. Nb3 O-O {[%emt 0:14:57]} 11. Nxc5 {[%emt 0:01:11]} dxc5 {[%emt 0:00:49]} 12. f3 {[%emt 0:00:49]} Rad8 {[%emt 0:03:29]} 13. O-O {[%emt 0:00:48]} c4 {[%emt 0:06:36]} 14. Be2 {[%emt 0:00:27]} b5 {[%emt 0:00:10]} 15. Be3 {[%emt 0:00:22]} a6 {[%emt 0:02:22]} 16. Qh4 {[%emt 0:00:45]} h6 {[%emt 0:10:43]} 17. Bxh6 {[%emt 0:01:07]} gxh6 {[%emt 0:01:46]} 18. Qxf6 {[%emt 0:01:05]} Kh7 {[%emt 0:00:07]} 19. Rfd1 {[%emt 0:05:16]} Qc5+ {[%emt 0:03:40]} 20. Kh1 {[%emt 0:01:07]} Rxd1+ {[%emt 0:00:46]} 21. Rxd1 {[%emt 0:10:37]} Qf2 {[%emt 0:01:08]} 22. Bf1 {[%emt 0:02:48]} Qxc2 {[%emt 0:01:45]} 23. Qd4 {[%emt 0:00:13]} Rg8 {[%emt 0:05:32]} 24. a3 {[%emt 0:02:43]} Rg6 {[%emt 0:04:43]} 25. e5 {[%emt 0:02:50]} c5 {[%emt 0:06:07]} 26. Qd8 {[%emt 0:02:22]} Qxb2 {[%emt 0:06:44]} 27. Qf8 {[%emt 0:00:28]} Qxe5 {[%emt 0:01:47]} 28. Rd8 {[%emt 0:00:41]} Bd5 {[%emt 0:04:31]} 29. Re8 {[%emt 0:00:52]} Qf6 {[%emt 0:05:14]} 30. Re3 {[%emt 0:04:10]} Qd4 {[%emt 0:02:54]} 31. Re8 {[%emt 0:01:28]} Qf6 {[%emt 0:02:04]} 32. Re3 {[%emt 0:01:41]} Qa1 {[%emt 0:00:39]} 33. Kg1 {[%emt 0:03:21]} Qd4 {[%emt 0:00:09]} 34. Kf2 {[%emt 0:00:06]} Be6 {[%emt 0:02:16]} 35. g3 {[%emt 0:01:20]} Rg8 {[%emt 0:01:17]} 36. Qe7 {[%emt 0:00:27]} Rd8 {[%emt 0:00:30]} 37. Bh3 {[%emt 0:02:02]} Rd7 {[%emt 0:01:38]} 38. Qh4 {[%emt 0:00:43]} Qxh4 {[%emt 0:00:11]} 0-1

[Event "14th HSG Open 2019-BC"]
[Site "Hilversum"]
[Date "2019.06.21"]
[Round "2.2"]
[White "Ibrahim, Geomerd"]
[Black "Patil, Mahesh"]
[Result "0-1"]
[ECO "B01"]
[WhiteElo "1935"]
[BlackElo "1749"]
[Annotator "NA"]
[PlyCount "89"]
[EventDate "2019.06.21"]
[EventType "swiss"]
[EventCountry "NED"]
[SourceTitle "playchess.com"]
[Source "ChessBase"]
[SourceQuality "1"]
[TimeControl "6600+10"]

1. e4 {[%emt 0:00:00]} d5 {[%emt 0:00:00]} 2. exd5 {[%emt 0:00:02]} Nf6 {[%emt 0:00:00]} 3. d4 {[%emt 0:00:38]} Nxd5 {[%emt 0:00:06]} 4. c4 {[%emt 0:00:58]} Nb6 {[%emt 0:00:05]} 5. Nc3 {[%emt 0:00:31]} e5 {[%emt 0:00:06]} 6. Be3 {[%emt 0:10:50]} exd4 {[%emt 0:02:35]} 7. Bxd4 {[%emt 0:00:53]} Nc6 {[%emt 0:01:41]} 8. Bxb6 {[%emt 0:05:24]} Qxd1+ {[%emt 0:02:56]} 9. Rxd1 {[%emt 0:00:03]} axb6 {[%emt 0:00:37]} 10. a3 {[%emt 0:01:15]} Bd7 {[%emt 0:10:50]} 11. Nd5 {[%emt 0:02:59]} Bd6 {[%emt 0:02:35]} 12. Nxb6 {[%emt 0:01:01]} Ra5 {[%emt 0:08:35]} 13. Nf3 {[%emt 0:09:53]} Bg4 {[%emt 0:01:25]} 14. Be2 {[%emt 0:03:40]} Bxa3 {[%emt 0:00:56]} 15. Nd5 {[%emt 0:10:46]} Bd6 {[%emt 0:02:49]} 16. O-O {[%emt 0:00:42]} O-O {[%emt 0:00:36]} 17. Ne3 {[%emt 0:15:26]} Bh5 {[%emt 0:04:59]} 18. g4 {[%emt 0:06:41]} Bg6 {[%emt 0:01:51]} 19. Nh4 {[%emt 0:00:39]} Ra2 {[%emt 0:06:03]} 20. Nxg6 {[%emt 0:03:31]} fxg6 {[%emt 0:00:45]} 21. c5 {[%emt 0:00:21]} Bxh2+ {[%emt 0:02:47]} 22. Kxh2 {[%emt 0:05:01]} Rxb2 {[%emt 0:00:18]} 23. Bc4+ {[%emt 0:00:45]} Kh8 {[%emt 0:00:08]} 24. Rb1 {[%emt 0:04:33]} Rfxf2+ {[%emt 0:04:21]} 25. Rxf2 {[%emt 0:00:12]} Rxf2+ {[%emt 0:00:07]} 26. Kg3 {[%emt 0:00:07]} Rf8 {[%emt 0:02:00]} 27. Rxb7 {[%emt 0:00:16]} Ne5 {[%emt 0:02:21]} 28. Rxc7 {[%emt 0:01:09]} h5 {[%emt 0:01:04]} 29. Be2 {[%emt 0:01:37]} Kh7 {[%emt 0:08:24]} 30. gxh5 {[%emt 0:01:45]} gxh5 {[%emt 0:01:17]} 31. Bxh5 {[%emt 0:00:14]} Rf6 {[%emt 0:08:43]} 32. Nd5 {[%emt 0:06:38]} Rf5 {[%emt 0:04:32]} 33. Be2 {[%emt 0:04:55]} Kh6 {[%emt 0:01:27]} 34. Ne7 {[%emt 0:01:48]} Rf7 {[%emt 0:03:14]} 35. Bd1 {[%emt 0:04:30]} Kg5 {[%emt 0:00:33]} 36. Ba4 {[%emt 0:01:06]} Rf3+ $18 {[%emt 0:01:00]} 37. Kg2 {[%emt 0:00:10]} Ra3 {[%emt 0:00:46]} 38. Be8 {[%emt 0:01:19]} Kg4 {[%emt 0:00:33]} 39. Bd7+ {[%emt 0:00:20]} Kf4 {[%emt 0:00:57]} 40. Be6 {[%emt 0:00:45]} Rg3+ {[%emt 0:00:48]} 41. Kf1 {[%emt 0:00:16]} g5 {[%emt 0:03:24]} 42. Ra7 {[%emt 0:00:26]} Rf3+ {[%emt 0:00:40]} 43. Kg2 {[%emt 0:00:08]} Rg3+ {[%emt 0:01:15]} 44. Kh1 {[%emt 0:00:02]} Rc3 {[%emt 0:01:55]} 45. Nd5+ {[%emt 0:00:12] Rg3 Ne7 Nf3 Ng6+ Ke3 Ra3+ Kf2 Ra2+ Kf1 Bc4+ Ke1 Re2+ Kd1} 0-1

[Event "14th HSG Open 2019-BC"]
[Site "Hilversum"]
[Date "2019.06.21"]
[Round "2.3"]
[White "Jacobsen, Raymond"]
[Black "Kazarjan, Gachatur"]
[Result "1-0"]
[ECO "B38"]
[WhiteElo "1358"]
[BlackElo "1484"]
[Annotator "NA"]
[PlyCount "74"]
[EventDate "2019.06.21"]
[EventType "swiss"]
[EventCountry "NED"]
[SourceTitle "playchess.com"]
[Source "ChessBase"]
[SourceQuality "1"]
[TimeControl "6600+10"]

1. e4 {[%emt 0:00:00]} c5 {[%emt 0:00:00]} 2. Nf3 {[%emt 0:00:03]} Nc6 {[%emt 0:00:13]} 3. d4 {[%emt 0:00:20]} cxd4 {[%emt 0:00:18]} 4. Nxd4 {[%emt 0:00:16]} g6 {[%emt 0:00:09]} 5. c4 {[%emt 0:01:45]} Bg7 {[%emt 0:01:01]} 6. Be3 {[%emt 0:01:22]} Nf6 {[%emt 0:00:10]} 7. Nc3 {[%emt 0:01:19]} O-O {[%emt 0:00:17]} 8. Be2 {[%emt 0:00:48]} d6 {[%emt 0:00:15]} 9. O-O {[%emt 0:01:22]} Nd7 {[%emt 0:02:08]} 10. Qd2 {[%emt 0:03:09]} Nb6 {[%emt 0:01:50]} 11. Rad1 {[%emt 0:04:04]} Bd7 {[%emt 0:03:10]} 12. f4 {[%emt 0:04:22]} Rc8 {[%emt 0:00:49]} 13. b3 {[%emt 0:08:23]} a6 {[%emt 0:06:38]} 14. f5 {[%emt 0:09:58]} Ne5 {[%emt 0:02:32]} 15. fxg6 {[%emt 0:06:16]} hxg6 {[%emt 0:01:05]} 16. Nf3 {[%emt 0:05:17]} Bg4 {[%emt 0:07:04]} 17. Nxe5 {[%emt 0:13:48]} Bxe2 {[%emt 0:02:31]} 18. Nxe2 {[%emt 0:05:51]} Bxe5 {[%emt 0:00:21]} 19. Bh6 {[%emt 0:01:05]} Bg7 {[%emt 0:01:05]} 20. Rf3 {[%emt 0:01:01]} Qc7 {[%emt 0:03:57]} 21. Rh3 {[%emt 0:01:21]} Qc5+ {[%emt 0:01:24]} 22. Kh1 {[%emt 0:00:36]} Qe5 {[%emt 0:01:45]} 23. Rf1 {[%emt 0:02:50]} e6 {[%emt 0:07:41]} 24. Bxg7 {[%emt 0:03:26]} Qxg7 {[%emt 0:00:49]} 25. Qxd6 {[%emt 0:00:13]} Rc6 {[%emt 0:00:04]} 26. Qe7 {[%emt 0:00:44]} a5 {[%emt 0:02:49]} 27. Qxb7 {[%emt 0:01:33]} Rfc8 {[%emt 0:01:00]} 28. Qe7 {[%emt 0:06:07]} a4 {[%emt 0:01:00]} 29. Rhf3 {[%emt 0:00:59]} R6c7 {[%emt 0:02:06]} 30. Qd6 {[%emt 0:01:36]} Nd7 {[%emt 0:02:12]} 31. Nd4 {[%emt 0:04:59]} Ne5 {[%emt 0:01:04]} 32. Rf6 {[%emt 0:01:17]} Ng4 {[%emt 0:01:51]} 33. Nxe6 fxe6 {[%emt 0:01:38]} 34. Qxe6+ {[%emt 0:03:05]} Kh8 {[%emt 0:00:06]} 35. Qxg4 {[%emt 0:00:32]} Rd8 {[%emt 0:00:22]} 36. Rxg6 {[%emt 0:01:48]} Qh7 {[%emt 0:00:18]} 37. Qg5 Rg8 1-0

[Event "14th HSG Open 2019-BC"]
[Site "Hilversum"]
[Date "2019.06.21"]
[Round "2.4"]
[White "Nitrauw, Peter"]
[Black "Sazonov, Fedor"]
[Result "1-0"]
[ECO "B21"]
[WhiteElo "1545"]
[BlackElo "1269"]
[Annotator "NA"]
[PlyCount "69"]
[EventDate "2019.06.21"]
[EventType "swiss"]
[EventCountry "NED"]
[SourceTitle "playchess.com"]
[Source "ChessBase"]
[SourceQuality "1"]
[TimeControl "6600+10"]

1. e4 {[%emt 0:00:00]} c5 {[%emt 0:00:00]} 2. d4 {[%emt 0:00:01]} cxd4 {[%emt 0:00:05]} 3. c3 {[%emt 0:00:17]} dxc3 {[%emt 0:00:20]} 4. Nxc3 {[%emt 0:00:18]} d6 {[%emt 0:00:56]} 5. Nf3 {[%emt 0:00:42]} Nc6 {[%emt 0:01:21]} 6. Bc4 {[%emt 0:01:00]} Nf6 {[%emt 0:02:15]} 7. O-O {[%emt 0:01:08]} g6 {[%emt 0:02:00]} 8. Qe2 {[%emt 0:01:07]} Bg7 {[%emt 0:00:56]} 9. Rd1 {[%emt 0:00:31]} Qc7 {[%emt 0:01:38]} 10. Nb5 {[%emt 0:01:47]} Qb8 {[%emt 0:04:37]} 11. Bf4 {[%emt 0:01:50]} a6 {[%emt 0:01:49]} 12. Rxd6 {[%emt 0:02:48]} e5 13. Nxe5 {[%emt 0:01:15]} axb5 {[%emt 0:30:18]} 14. Bxf7+ {[%emt 0:14:37]} Kf8 {[%emt 0:07:55]} 15. Nxc6 {[%emt 0:03:37]} bxc6 {[%emt 0:06:59]} 16. Rxf6 {[%emt 0:02:15]} Bxf6 {[%emt 0:02:39]} 17. Bxb8 {[%emt 0:00:24]} Kxf7 {[%emt 0:00:50]} 18. Bf4 {[%emt 0:01:01]} Be6 {[%emt 0:00:28]} 19. e5 {[%emt 0:03:05]} Be7 {[%emt 0:00:29]} 20. Qc2 {[%emt 0:01:55]} Rhd8 {[%emt 0:08:20]} 21. b3 {[%emt 0:02:25]} c5 {[%emt 0:05:03]} 22. h3 {[%emt 0:04:07]} b4 {[%emt 0:02:58]} 23. Be3 {[%emt 0:02:01]} Rd5 {[%emt 0:02:36]} 24. f4 {[%emt 0:01:34]} Ra3 {[%emt 0:03:41]} 25. Rf1 {[%emt 0:02:12]} Bf5 {[%emt 0:01:43]} 26. Qc4 {[%emt 0:00:53]} Be6 {[%emt 0:00:34]} 27. f5 {[%emt 0:01:59]} gxf5 {[%emt 0:01:11]} 28. Rxf5+ {[%emt 0:00:25]} Kg7 {[%emt 0:00:59]} 29. Qg4+ {[%emt 0:01:18]} Kh8 {[%emt 0:01:03]} 30. Bh6 {[%emt 0:00:14]} Rd1+ {[%emt 0:01:31]} 31. Kh2 {[%emt 0:00:26]} Rh1+ {[%emt 0:01:11]} 32. Kxh1 {[%emt 0:00:13]} Bg5 {[%emt 0:00:19]} 33. Rf8+ {[%emt 0:00:46]} Bg8 {[%emt 0:00:08]} 34. Qxg5 {[%emt 0:00:21]} Ra7 {[%emt 0:00:14]} 35. Rxg8# 1-0

[Event "14th HSG Open 2019-BC"]
[Site "Hilversum"]
[Date "2019.06.22"]
[Round "3.1"]
[White "De Winter, Arthur"]
[Black "Ibrahim, Geomerd"]
[Result "1-0"]
[ECO "C78"]
[WhiteElo "1759"]
[BlackElo "1935"]
[Annotator "NA"]
[PlyCount "77"]
[EventDate "2019.06.21"]
[EventType "swiss"]
[EventCountry "NED"]
[SourceTitle "playchess.com"]
[Source "ChessBase"]
[SourceQuality "1"]
[TimeControl "6600+10"]

1. e4 {[%emt 0:00:00]} Nc6 {[%emt 0:00:00]} 2. Nf3 {[%emt 0:00:05]} e5 {[%emt 0:00:24]} 3. Bb5 {[%emt 0:00:10]} a6 {[%emt 0:00:05]} 4. Ba4 {[%emt 0:00:05]} Nf6 {[%emt 0:00:08]} 5. O-O {[%emt 0:00:22]} b5 {[%emt 0:00:14]} 6. Bb3 {[%emt 0:00:08]} d6 {[%emt 0:01:04]} 7. Ng5 {[%emt 0:03:44]} d5 {[%emt 0:13:45]} 8. exd5 {[%emt 0:01:20]} Nd4 {[%emt 0:00:27]} 9. Nc3 {[%emt 0:05:38] C78: Ruy Lopez: Archangelsk and Möller Defences} (9. Re1 Nxb3 10. Rxe5+ Be7 11. axb3 Ng4 12. Re1 Qxd5 13. Nf3 Qd6 14. Nc3 Bb7 15. h3 Nf6 16. Qe2 b4 17. Na4 {1-0 (25) Hossain,E (2438)-Rahman,S (2202) Dhaka 2019}) 9... h6 {[%emt 0:09:42]} 10. Nge4 {[%emt 0:02:18]} Nxe4 {[%emt 0:01:00]} 11. Nxe4 {[%emt 0:00:10]} Nxb3 12. axb3 {[%emt 0:00:12]} Qxd5 {[%emt 0:00:27]} 13. Nc3 {[%emt 0:01:48]} Qc6 {[%emt 0:06:04]} 14. Re1 {[%emt 0:07:56]} Be6 $146 {[%emt 0:09:21]} ({Predecessor:} 14... Bd6 15. d4 Bb7 16. Qg4 h5 {1-0 (68) Solty,L (2148)-Csernyiczky,L (2036) Hungary 2012}) 15. d4 {[%emt 0:16:02]} exd4 {[%emt 0:02:21]} 16. Qxd4 {[%emt 0:00:20]} Bc5 {[%emt 0:00:21]} 17. Qh4 {[%emt 0:13:13]} (17. Qxg7 O-O-O $15) 17... Be7 {[%emt 0:03:40]} 18. Qg3 {[%emt 0:00:58]} O-O-O {[%emt 0:02:05]} 19. Bf4 {[%emt 0:06:44]} g5 {[%emt 0:06:09]} 20. Be5 {[%emt 0:01:30]} f6 {[%emt 0:00:31]} 21. Bxc7 {[%emt 0:00:41]} Rd7 {[%emt 0:09:50]} 22. Ba5 {[%emt 0:05:59]} Bf5 {[%emt 0:00:18]} 23. Ne2 $14 {[%emt 0:07:48]} Kb7 {[%emt 0:09:17]} 24. Nd4 {[%emt 0:01:26]} Rxd4 {[%emt 0:18:34]} 25. Rxe7+ {[%emt 0:00:08]} Rd7 {[%emt 0:00:13]} 26. Rae1 {[%emt 0:01:38]} Rc8 {[%emt 0:03:59]} 27. c3 {[%emt 0:01:43]} Ka8 {[%emt 0:04:51]} 28. h3 {[%emt 0:00:35]} Bc2 {[%emt 0:03:53]} 29. R7e6 {[%emt 0:02:24]} Qd5 {[%emt 0:03:41]} 30. Rxa6+ {[%emt 0:00:10]} Ra7 {[%emt 0:00:01]} 31. Rxa7+ {[%emt 0:01:19]} Kxa7 {[%emt 0:00:02]} 32. Re7+ {[%emt 0:00:33]} Ka6 {[%emt 0:00:35]} 33. Qe3 {[%emt 0:01:27]} Qc5 {[%emt 0:01:32]} 34. Re6+ {[%emt 0:00:19]} Kb7 {[%emt 0:00:17]} 35. Rb6+ {[%emt 0:00:39]} Ka7 {[%emt 0:00:05]} 36. Qe6 {[%emt 0:00:22]} Ka8 {[%emt 0:00:50]} 37. Qd7 {[%emt 0:01:36]} Be4 38. Ra6+ Kb8 39. Bb6 1-0

[Event "14th HSG Open 2019-BC"]
[Site "Hilversum"]
[Date "2019.06.22"]
[Round "3.2"]
[White "Den Boer, Paul"]
[Black "Bettman, Jan"]
[Result "1-0"]
[ECO "A01"]
[WhiteElo "1901"]
[BlackElo "1877"]
[Annotator "NA"]
[PlyCount "73"]
[EventDate "2019.06.21"]
[EventType "swiss"]
[EventCountry "NED"]
[SourceTitle "playchess.com"]
[Source "ChessBase"]
[SourceQuality "1"]
[TimeControl "6600+10"]

1. b3 {[%emt 0:00:10]} e5 {[%emt 0:00:40]} 2. Bb2 {[%emt 0:00:19]} Nc6 {[%emt 0:00:27]} 3. e3 {[%emt 0:02:02]} d5 {[%emt 0:04:29]} 4. Bb5 {[%emt 0:04:00]} Bd6 {[%emt 0:00:44]} 5. Nf3 {[%emt 0:03:29]} f6 {[%emt 0:06:02]} 6. c4 {[%emt 0:07:52]} a6 {[%emt 0:00:24]} 7. Bxc6+ {[%emt 0:04:48]} bxc6 {[%emt 0:00:06]} 8. Nc3 {[%emt 0:02:23]} e4 {[%emt 0:12:19]} 9. Nd4 {[%emt 0:06:22]} Ne7 {[%emt 0:03:40]} 10. cxd5 {[%emt 0:02:08]} cxd5 {[%emt 0:05:51]} 11. Nxd5 {[%emt 0:04:22]} O-O {[%emt 0:07:43]} 12. Nxe7+ {[%emt 0:02:47]} Qxe7 {[%emt 0:00:23]} 13. Qh5 {[%emt 0:05:28]} f5 {[%emt 0:10:56]} 14. Nc6 {[%emt 0:05:43]} Qd7 {[%emt 0:04:37]} 15. Ne5 {[%emt 0:02:56]} Qe6 {[%emt 0:04:32]} 16. Nc4 {[%emt 0:01:10]} Be7 {[%emt 0:01:33]} 17. O-O {[%emt 0:10:41]} Bb7 {[%emt 0:02:35]} 18. Rac1 {[%emt 0:04:31]} Rad8 $16 {[%emt 0:04:27]} 19. Rc2 {[%emt 0:04:36]} Rd5 {[%emt 0:01:44]} 20. Qh3 {[%emt 0:03:53]} Bf6 {[%emt 0:02:41]} 21. Qg3 {[%emt 0:00:57]} f4 {[%emt 0:03:22]} 22. exf4 {[%emt 0:01:32]} Bxb2 {[%emt 0:00:42]} 23. Nxb2 {[%emt 0:10:40]} c5 {[%emt 0:06:16]} 24. Na4 {[%emt 0:02:16]} Rff5 {[%emt 0:00:12]} 25. Qe3 {[%emt 0:06:56]} Qd6 {[%emt 0:13:56]} 26. Qxe4 {[%emt 0:03:36]} Rxf4 {[%emt 0:00:32]} 27. Qe8+ {[%emt 0:00:18]} Rf8 {[%emt 0:00:08]} 28. Qe3 {[%emt 0:00:33]} Rh5 {[%emt 0:01:57]} 29. Qg3 {[%emt 0:02:11]} Rf4 {[%emt 0:02:44]} 30. Rc4 {[%emt 0:01:06]} Rf6 {[%emt 0:04:25]} 31. Qxd6 {[%emt 0:00:20]} Rxd6 {[%emt 0:00:04]} 32. Nxc5 {[%emt 0:00:46]} Bd5 {[%emt 0:00:11]} 33. Rd4 {[%emt 0:01:34]} Rdh6 {[%emt 0:01:23]} 34. h4 {[%emt 0:01:01]} Rc6 {[%emt 0:01:58]} 35. Ne4 {[%emt 0:00:24]} Rg6 {[%emt 0:00:35]} 36. Ng5 {[%emt 0:00:31]} Bc6 {[%emt 0:00:21]} 37. Rd8+ {[%emt 0:00:10]} 1-0

[Event "14th HSG Open 2019-BC"]
[Site "Hilversum"]
[Date "2019.06.22"]
[Round "3.3"]
[White "Boons, Joris"]
[Black "Jacobsen, Raymond"]
[Result "1/2-1/2"]
[ECO "C55"]
[WhiteElo "1512"]
[BlackElo "1358"]
[Annotator "NA"]
[PlyCount "76"]
[EventDate "2019.06.21"]
[EventType "swiss"]
[EventCountry "NED"]
[SourceTitle "playchess.com"]
[Source "ChessBase"]
[SourceQuality "1"]
[TimeControl "6600+10"]

1. e4 {[%emt 0:09:49]} e5 {[%emt 0:00:00]} 2. Nf3 {[%emt 0:02:01]} Nc6 {[%emt 0:00:07]} 3. d4 {[%emt 0:00:05]} exd4 {[%emt 0:00:08]} 4. Bc4 {[%emt 0:00:02]} Nf6 {[%emt 0:02:47]} 5. e5 {[%emt 0:00:11]} d5 {[%emt 0:06:23]} 6. Bb5 {[%emt 0:00:18]} Ne4 {[%emt 0:04:58]} 7. O-O {[%emt 0:06:06]} Bc5 {[%emt 0:04:21]} 8. Nxd4 {[%emt 0:03:43]} Bd7 {[%emt 0:03:35]} 9. Bxc6 {[%emt 0:01:23]} Bxc6 {[%emt 0:06:45]} 10. Be3 {[%emt 0:01:10]} Bxd4 {[%emt 0:05:07]} 11. Qxd4 {[%emt 0:06:21]} Ng5 {[%emt 0:07:49]} 12. Bxg5 {[%emt 0:02:07]} Qxg5 {[%emt 0:02:08]} 13. Nc3 {[%emt 0:10:40]} O-O {[%emt 0:01:26]} 14. Nxd5 {[%emt 0:01:11]} Rfd8 {[%emt 0:03:47]} 15. c4 {[%emt 0:01:04]} b5 {[%emt 0:02:52]} 16. f4 {[%emt 0:08:47]} Qh4 {[%emt 0:03:27]} 17. Qc5 {[%emt 0:01:39]} Bxd5 {[%emt 0:04:44]} 18. cxd5 {[%emt 0:02:32]} a6 {[%emt 0:02:07]} 19. Rad1 {[%emt 0:00:16]} Qg4 {[%emt 0:04:50]} 20. a3 {[%emt 0:07:57]} Qe2 {[%emt 0:04:54]} 21. Qf2 {[%emt 0:02:45]} Qc4 {[%emt 0:01:59]} 22. Rd4 {[%emt 0:00:54]} Qc5 {[%emt 0:01:38]} 23. Rfd1 {[%emt 0:00:07]} Rd7 {[%emt 0:04:13]} 24. e6 {[%emt 0:02:52]} fxe6 {[%emt 0:01:22]} 25. dxe6 {[%emt 0:03:53]} Rxd4 {[%emt 0:01:58]} 26. Qxd4 {[%emt 0:00:08]} Qxd4+ {[%emt 0:02:11]} 27. Rxd4 {[%emt 0:00:04]} Re8 {[%emt 0:00:11]} 28. f5 {[%emt 0:00:17]} Kf8 {[%emt 0:00:39]} 29. Rd7 {[%emt 0:00:17]} Re7 {[%emt 0:01:16]} 30. Rxe7 {[%emt 0:00:14]} Kxe7 {[%emt 0:00:02]} 31. Kf2 {[%emt 0:00:11]} c5 {[%emt 0:00:12]} 32. Ke3 {[%emt 0:00:08]} g6 {[%emt 0:00:10]} 33. g4 {[%emt 0:00:02]} a5 {[%emt 0:02:23]} 34. Kd3 {[%emt 0:01:53]} Kd6 {[%emt 0:00:29]} 35. Kc3 {[%emt 0:02:46]} g5 {[%emt 0:00:44]} 36. b4 {[%emt 0:01:55]} cxb4+ {[%emt 0:02:25]} 37. axb4 {[%emt 0:03:26]} a4 {[%emt 0:00:11]} 38. Kb2 {[%emt 0:00:30]} Ke7 {[%emt 0:00:20]} 1/2-1/2